fUSD/lending_fUSD_20250105
["ID","MTS","AMOUNT","RATE_DAILY","PERIOD"]
[347803628,1736117444884,-500.0,0.00011808,2]
[347803629,1736117444894,-500.0,0.00011808,2]
[347803630,1736117444904,-500.0,0.00011808,2]
[347803631,1736117444914,-500.0,0.00011808,2]
[347803632,1736117444924,-500.0,0.00011808,2]
[347803633,1736117444934,-500.0,0.00011808,2]
[347803634,1736117444943,-500.0,0.00011808,2]
[347803635,1736117444953,-500.0,0.00011808,2]
[347803636,1736117444963,-500.0,0.00011808,2]
[347803637,1736117444972,-107.35673427,0.00011808,2]
[347803638,1736117444997,-392.64326573,0.00011808,2]
[347803639,1736117445008,-500.0,0.00011809,2]
[347803640,1736117445017,-500.0,0.00011809,2]
[347803641,1736117445028,-528.09019642,0.00011809,2]
[347803642,1736117445038,-540.38,0.00011809,2]
[347803643,1736117445047,-434.16981543,0.00011809,2]
[347803644,1736117445057,-500.0,0.00011809,2]
[347803645,1736117445067,-500.0,0.00011809,2]
[347803646,1736117445077,-500.0,0.00011809,2]
[347803647,1736117445087,-257.89,0.00011809,2]
[347803648,1736117445096,-500.0,0.00011809,2]
[347803649,1736117445106,-500.0,0.00011809,2]
[347803650,1736117445116,-500.0,0.00011809,2]
[347803651,1736117445125,-353.31,0.00011809,2]
[347803652,1736117445135,-592.3,0.00011809,2]
[347803653,1736117445144,-500.0,0.00011809,2]
[347803654,1736117445154,-500.0,0.00011809,2]
[347803655,1736117445163,-463.50942565,0.00011809,2]
[347803656,1736117445173,-500.0,0.00011809,2]
[347803657,1736117445183,-594.32,0.00011809,2]
[347803658,1736117445192,-500.0,0.00011809,2]
[347803659,1736117445202,-500.0,0.00011809,2]
[347803660,1736117445211,-500.0,0.00011809,2]
[347803661,1736117445220,-500.0,0.00011809,2]
[347803662,1736117445230,-500.0,0.00011809,2]
[347803663,1736117445240,-500.0,0.00011809,2]
[347803664,1736117445249,-500.0,0.00011809,2]
[347803665,1736117445259,-500.0,0.00011809,2]
[347803666,1736117445268,-500.0,0.00011809,2]
[347803667,1736117445278,-500.0,0.00011809,2]
[347803668,1736117445287,-500.0,0.00011809,2]
[347803669,1736117445297,-500.0,0.00011809,2]
[347803670,1736117445306,-500.0,0.00011809,2]
[347803671,1736117445316,-293.81585519,0.00011809,2]
[347803672,1736117445326,-803.64,0.00011809,2]
[347803673,1736117445336,-500.0,0.00011809,2]
[347803674,1736117445345,-500.0,0.00011809,2]
[347803675,1736117445355,-500.0,0.00011809,2]
[347803676,1736117445364,-500.0,0.00011809,2]
[347803677,1736117445374,-500.0,0.00011809,2]
[347803678,1736117445383,-500.0,0.00011809,2]
[347803679,1736117445393,-503.54,0.00011809,2]
[347803680,1736117445402,-500.0,0.00011809,2]
[347803681,1736117445413,-500.0,0.00011809,2]
[347803682,1736117445425,-500.0,0.00011809,2]
[347803683,1736117445438,-500.0,0.00011809,2]
[347803684,1736117445449,-500.0,0.00011809,2]
[347803685,1736117445459,-500.0,0.00011809,2]
[347803686,1736117445471,-500.0,0.00011809,2]
[347803687,1736117445482,-1503.26,0.00011809,2]
[347803688,1736117445491,-500.0,0.00011809,2]
[347803689,1736117445501,-500.0,0.00011809,2]
[347803690,1736117445510,-500.0,0.00011809,2]
[347803691,1736117445521,-500.0,0.00011809,2]
[347803692,1736117445531,-436.1569389,0.00011809,2]
[347803693,1736117445542,-500.0,0.00011809,2]
[347803694,1736117445551,-500.0,0.00011809,2]
[347803695,1736117445563,-500.0,0.00011809,2]
[347803696,1736117445573,-1745.44,0.00011809,2]
[347803697,1736117445584,-500.0,0.00011809,2]
[347803698,1736117445594,-500.0,0.00011809,2]
[347803699,1736117445603,-602.74257638,0.00011809,2]
[347803700,1736117445612,-500.0,0.00011809,2]
[347803701,1736117445624,-500.0,0.00011809,2]
[347803702,1736117445635,-500.0,0.00011809,2]
[347803703,1736117445646,-500.0,0.00011809,2]
[347803704,1736117445657,-500.0,0.00011809,2]
[347803705,1736117445668,-500.0,0.00011809,2]
[347803706,1736117445677,-500.0,0.00011809,2]
[347803707,1736117445687,-500.0,0.00011809,2]
[347803708,1736117445698,-500.0,0.00011809,2]
[347803709,1736117445708,-500.0,0.00011809,2]
[347803710,1736117445718,-648.52,0.00011809,2]
[347803711,1736117445727,-500.0,0.00011809,2]
[347803712,1736117445737,-500.0,0.00011809,2]
[347803714,1736117445747,-500.0,0.00011809,2]
[347803716,1736117445756,-500.0,0.00011809,2]
[347803718,1736117445766,-500.0,0.00011809,2]
[347803720,1736117445776,-500.0,0.00011809,2]
[347803722,1736117445786,-500.0,0.00011809,2]
[347803724,1736117445796,-500.0,0.00011809,2]
[347803726,1736117445806,-653.54,0.00011809,2]
[347803728,1736117445816,-500.0,0.00011809,2]
[347803738,1736117446013,-500.0,0.00011809,2]
[347803739,1736117446024,-500.0,0.00011809,2]
[347803740,1736117446034,-500.0,0.00011809,2]
[347803741,1736117446044,-500.0,0.00011809,2]
[347803742,1736117446054,-500.0,0.00011809,2]
[347803743,1736117446064,-500.0,0.00011809,2]
[347803744,1736117446073,-500.0,0.00011809,2]
[347803745,1736117446083,-500.0,0.00011809,2]
[347803746,1736117446092,-386.51829599,0.00011809,2]
[347803747,1736117446105,-500.0,0.00011809,2]
[347803748,1736117446114,-500.0,0.00011809,2]
[347803749,1736117446124,-500.0,0.00011809,2]
[347803750,1736117446134,-569.86468793,0.00011809,2]
[347803751,1736117446147,-604.57531207,0.00011809,2]
[347803752,1736117446156,-150.0,0.00011809,2]
[347803753,1736117446166,-500.0,0.00011809,2]
[347803754,1736117446176,-500.0,0.00011809,2]
[347803755,1736117446186,-500.0,0.00011809,2]
[347803756,1736117446195,-500.0,0.00011809,2]
[347803757,1736117446205,-647.02,0.00011809,2]
[347803758,1736117446214,-500.0,0.00011809,2]
[347803759,1736117446223,-500.0,0.00011809,2]
[347803760,1736117446233,-500.0,0.00011809,2]
[347803761,1736117446242,-500.0,0.00011809,2]
[347803762,1736117446252,-500.0,0.00011809,2]
[347803763,1736117446261,-500.0,0.00011809,2]
[347803764,1736117446272,-500.0,0.00011809,2]
[347803765,1736117446282,-336.59769161,0.00011809,2]
[347803766,1736117446294,-163.40230839,0.00011809,2]
[347803767,1736117446303,-578.93,0.00011809,2]
[347803768,1736117446312,-16.17922004,0.00011809,2]
[347803769,1736117446324,-483.82077996,0.00011809,2]
[347803770,1736117446333,-287.19450494,0.00011809,2]
[347803771,1736117446344,-212.80549506,0.00011809,2]
[347803772,1736117446354,-530.01,0.0001181,2]
[347803773,1736117446364,-500.0,0.0001181,2]
[347803774,1736117446373,-500.0,0.0001181,2]
[347803775,1736117446382,-500.0,0.0001181,2]
[347803776,1736117446392,-500.0,0.0001181,2]
[347803777,1736117446402,-571.16428636,0.00011831,2]
[347803778,1736117446411,-200.0,0.00011873,2]
[347803779,1736117446420,-2000.0,0.00011873,2]
[347803780,1736117446433,-200.0,0.00011873,2]
[347803781,1736117446444,-500.0,0.00011899,2]
[347803782,1736117446453,-500.0,0.00011899,2]
[347803783,1736117446462,-500.0,0.00011899,2]
[347803784,1736117446471,-1479.9,0.00011899,2]
[347803785,1736117446481,-500.0,0.00011899,2]
[347803786,1736117446491,-525.51,0.00011899,2]
[347803787,1736117446500,-500.0,0.00011899,2]
[347803788,1736117446510,-947.94,0.00011899,2]
[347803789,1736117446520,-500.0,0.00011899,2]
[347803790,1736117446532,-347.17221858,0.00011899,2]
[347803799,1736117446701,-420.63063219,0.00011249,2]
[347803801,1736117446711,-152.82778142,0.00011899,2]
[347803803,1736117446721,-930.89001534,0.00011899,2]
[347803805,1736117446731,-500.0,0.00011899,2]
[347803807,1736117446740,-896.2332329,0.00011899,2]
[347803809,1736117446749,-500.0,0.00011899,2]
[347803811,1736117446759,-313.66290066,0.00011899,2]
[347803813,1736117446768,-500.0,0.00011899,2]
[347803815,1736117446777,-2478.43195207,0.000119,2]
[347803818,1736117446789,-300.0,0.000119,2]
[347803820,1736117446800,-1419.99639479,0.000119,2]
[347803822,1736117446811,-1000.0,0.000119,2]
[347803824,1736117446823,-1201.39401614,0.000119,2]
[347803826,1736117446834,-260.51,0.000119,2]
[347803829,1736117446845,-2038.6,0.000119,2]
[347803831,1736117446858,-2140.30685,0.000119,2]
[347803833,1736117446870,-4124.81419429,0.000119,2]
[347803835,1736117446881,-1762.68205059,0.000119,2]
[347803837,1736117446892,-8273.26454212,0.000119,2]
[347803839,1736117446902,-6330.72736314,0.000119,2]
[347803842,1736117446913,-10033.0,0.000119,2]
[347803844,1736117446925,-6820.40251413,0.000119,2]
[347803846,1736117446936,-8493.3491598,0.000119,2]
[347803848,1736117446947,-2306.41831059,0.000119,2]
[347803850,1736117446958,-57333.65086779,0.000119,2]
[347803861,1736117447052,-365.545,0.000119,2]
[347803863,1736117447064,-412.30999988,0.000119,2]
[347803866,1736117447075,-2010.44552096,0.000119,2]
[347803868,1736117447087,-11028.01420063,0.000119,2]
[347803870,1736117447099,-17651.118887,0.000119,2]
[347803872,1736117447111,-18675.47827135,0.000119,2]
[347803875,1736117447122,-2734.9,0.000119,2]
[347803878,1736117447141,-543.24000001,0.000119,2]
[347803880,1736117447153,-8305.98621359,0.000119,2]
[347803882,1736117447164,-527.23044651,0.000119,2]
[347803884,1736117447173,-151.0,0.000119,2]
[347803886,1736117447183,-151.0,0.000119,2]
[347803888,1736117447192,-500.0,0.00011904,2]
[347803890,1736117447203,-2000.0,0.00011904,2]
[347803892,1736117447214,-200.0,0.00011904,2]
[347803894,1736117447224,-384.5,0.00011914,2]
[347803896,1736117447234,-500.0,0.00011914,2]
[347803897,1736117447244,-361.93,0.00011914,2]
[347803899,1736117447254,-500.0,0.00011914,2]
[347803901,1736117447264,-162.24,0.00011914,2]
[347803902,1736117447274,-609.51,0.00011914,2]
[347803903,1736117447284,-500.0,0.00011914,2]
[347803904,1736117447294,-500.0,0.00011914,2]
[347803905,1736117447305,-910.97,0.00011914,2]
[347803906,1736117447315,-743.23,0.00011914,2]
[347803907,1736117447326,-500.0,0.00011914,2]
[347803908,1736117447336,-571.16428636,0.00011938,2]
[347803909,1736117447347,-527.23044646,0.0001195,2]
[347803910,1736117447359,-985.56514302,0.00011999,2]
[347803911,1736117447371,-9.28975698,0.00011999,2]
[347803912,1736117447381,-1000.0,0.00011999,2]
[347803913,1736117447391,-1000.0,0.00011999,2]
[347803914,1736117447402,-500.0,0.00011999,2]
[347803915,1736117447413,-151.0,0.00011999,2]
[347803916,1736117447423,-151.0,0.00011999,2]
[347803917,1736117447435,-1000.0,0.00011999,2]
[347803918,1736117447446,-500.0,0.00011999,2]
[347803919,1736117447456,-500.0,0.00011999,2]
[347803920,1736117447466,-500.0,0.00011999,2]
[347803921,1736117447475,-1134.24535802,0.00012,2]
[347803922,1736117447485,-29233.45800328,0.00012,2]
[347803923,1736117447497,-60309.06773031,0.00012,2]
[347803924,1736117447509,-675.424955,0.00012,2]
[347803925,1736117447643,-616.0,0.00011999,2]
[347803926,1736117447659,-497.0,0.00011999,2]
[347803927,1736117447669,-18315.52833332,0.00012,2]
[347803928,1736117447681,-373.46775991,0.00012,2]
[347803929,1736117447697,-1014.65,0.00012,2]
[347803930,1736117447709,-10370.79529532,0.00012,2]
[347803931,1736117447725,-3238.97259155,0.00012,2]
[347803932,1736117447741,-957.40000005,0.00012,2]
[347803933,1736117447753,-2002.75405405,0.00012,2]
[347803934,1736117447765,-3894.11110498,0.00012,2]
[347803964,1736118632116,-438.1314448,8.425e-05,2]
[347803965,1736118632127,-410.6585552,8.425e-05,2]
[347803966,1736118632136,-249.27822922,9.78e-05,2]
[347803967,1736118632148,-784.56678699,9.78e-05,2]
[347803968,1736118632162,-1260.68413483,9.78e-05,2]
[347803969,1736118632171,-1881.11662215,9.781e-05,2]
[347803970,1736118632180,-2294.52915104,9.781e-05,2]
[347803971,1736118632190,-4720.67009198,9.782e-05,2]
[347803972,1736118632201,-306.02171198,9.782e-05,2]
[347803973,1736118632210,-5026.69180396,9.782e-05,2]
[347803974,1736118632220,-2294.52915104,9.783e-05,2]
[347803975,1736118632229,-1881.11662215,9.783e-05,2]
[347803976,1736118632239,-1881.11662215,9.785e-05,2]
[347803977,1736118632247,-5026.69180396,9.786e-05,2]
[347803978,1736118632257,-1881.11662215,9.786e-05,2]
[347803979,1736118632265,-2294.52915104,9.787e-05,2]
[347803980,1736118632275,-5026.69180396,9.787e-05,2]
[347803981,1736118632284,-1881.11662215,9.787e-05,2]
[347803982,1736118632294,-1881.11662215,9.788e-05,2]
[347803983,1736118632304,-2294.52915104,9.791e-05,2]
[347803984,1736118632313,-5026.69180396,9.793e-05,2]
[347803985,1736118632324,-5026.69180396,9.798e-05,2]
[347803986,1736118632334,-2294.52915104,9.799e-05,2]
[347803987,1736118632343,-153.0,9.968e-05,2]
[347803988,1736118632352,-166.66666666,9.984e-05,2]
[347803989,1736118632362,-300.0,9.999e-05,2]
[347803990,1736118632371,-202.76,0.0001,2]
[347803991,1736118632380,-166.66666668,0.0001,2]
[347803992,1736118632390,-166.66666666,0.00010068,2]
[347803993,1736118632400,-150.0,0.00010111,2]
[347803994,1736118632409,-4322.83,0.00010112,2]
[347803995,1736118632418,-151.89,0.00010137,2]
[347803996,1736118632427,-805.6,0.00010137,2]
[347803997,1736118632437,-250.0,0.00010148,2]
[347803998,1736118632446,-1000.0,0.0001016,2]
[347803999,1736118632455,-500.0,0.00010168,2]
[347804000,1736118632465,-500.0,0.00010168,2]
[347804001,1736118632474,-250.0,0.00010342,2]
[347804002,1736118632483,-1481.81,0.00010452,2]
[347804003,1736118632492,-153.61,0.00010453,2]
[347804004,1736118632502,-1491.53,0.00010484,2]
[347804005,1736118632511,-1486.38,0.0001052,2]
[347804006,1736118632521,-1497.54,0.00010559,2]
[347804007,1736118632530,-1483.98,0.00010602,2]
[347804008,1736118632539,-1499.21,0.00010649,2]
[347804009,1736118632549,-848.79,0.00010688,2]
[347804010,1736118632558,-1529.75,0.000107,2]
[347804011,1736118632568,-1500.63,0.00010756,2]
[347804012,1736118632577,-150.0,0.00010775,2]
[347804013,1736118632586,-150.0,0.00010775,2]
[347804014,1736118632595,-150.13475743,0.00010775,2]
[347804016,1736118632604,-150.0,0.00010775,2]
[347804018,1736118632618,-150.0,0.00010775,2]
[347804020,1736118632628,-284.42890519,0.00010775,2]
[347804022,1736118632638,-168.75496854,0.00010775,2]
[347804024,1736118632647,-150.0,0.00010775,2]
[347804026,1736118632657,-150.0,0.00010775,2]
[347804028,1736118632667,-158.70219522,0.00010775,2]
[347804030,1736118632677,-171.69550468,0.00010775,2]
[347804032,1736118632686,-150.0,0.00010775,2]
[347804034,1736118632696,-150.0,0.00010775,2]
[347804036,1736118632705,-150.0,0.00010813,2]
[347804038,1736118632714,-150.0,0.0001085,2]
[347804040,1736118632724,-150.0,0.0001085,2]
[347804042,1736118632733,-150.0,0.00010888,2]
[347804043,1736118632742,-171.34928614,0.000109,2]
[347804045,1736118632751,-1484.5,0.00010913,2]
[347804047,1736118632761,-150.0,0.00010925,2]
[347804049,1736118632770,-150.0,0.00010925,2]
[347804051,1736118632780,-150.0,0.00010946,2]
[347804053,1736118632789,-150.0,0.00010959,2]
[347804056,1736118632799,-150.0,0.00010962,2]
[347804059,1736118632808,-171.3492859,0.00010969,2]
[347804062,1736118632818,-400.0,0.00010986,2]
[347804065,1736118632828,-1476.41,0.00010992,2]
[347804068,1736118632837,-420.0,0.00010999,2]
[347804071,1736118632846,-150.0,0.00011,2]
[347804074,1736118632856,-150.0,0.00011,2]
[347804077,1736118632868,-975.34178112,0.00011,2]
[347804081,1736118632878,-150.0,0.00011037,2]
[347804084,1736118632888,-171.3492859,0.00011038,2]
[347804087,1736118632897,-150.0,0.00011075,2]
[347804089,1736118632907,-150.0,0.00011075,2]
[347804093,1736118632917,-1528.33,0.00011077,2]
[347804096,1736118632927,-171.3492859,0.00011107,2]
[347804099,1736118632936,-255.0,0.00011112,2]
[347804102,1736118632947,-150.0,0.00011112,2]
[347804104,1736118632957,-150.0,0.00011117,2]
[347804107,1736118632966,-153.0,0.00011124,2]
[347804110,1736118632975,-150.0,0.00011149,2]
[347804113,1736118632985,-150.0,0.00011149,2]
[347804115,1736118632994,-1529.63,0.00011171,2]
[347804118,1736118633004,-171.3492859,0.00011176,2]
[347804119,1736118633014,-150.0,0.00011187,2]
[347804121,1736118633023,-150.0,0.00011224,2]
[347804123,1736118633032,-150.0,0.00011224,2]
[347804125,1736118633042,-171.3492859,0.00011245,2]
[347804127,1736118633051,-150.0,0.00011262,2]
[347804129,1736118633061,-700.0,0.00011264,2]
[347804131,1736118633071,-150.0,0.00011288,2]
[347804133,1736118633082,-150.0,0.00011299,2]
[347804135,1736118633092,-150.0,0.00011299,2]
[347804137,1736118633102,-171.3492859,0.00011314,2]
[347804139,1736118633111,-150.0,0.00011337,2]
[347804141,1736118633121,-22018.0,0.00011342,2]
[347804143,1736118633131,-500.0,0.00011366,2]
[347804145,1736118633140,-556.23,0.00011366,2]
[347804147,1736118633149,-523.45,0.00011366,2]
[347804149,1736118633159,-500.0,0.00011366,2]
[347804151,1736118633168,-181.73859322,0.00011366,2]
[347804153,1736118633181,-318.26140678,0.00011366,2]
[347804155,1736118633191,-500.0,0.00011366,2]
[347804157,1736118633201,-500.0,0.00011366,2]
[347804159,1736118633210,-500.0,0.00011366,2]
[347804161,1736118633219,-500.0,0.00011366,2]
[347804163,1736118633229,-500.0,0.00011366,2]
[347804165,1736118633238,-518.52,0.00011366,2]
[347804167,1736118633247,-1767.42,0.00011366,2]
[347804169,1736118633256,-180.44584976,0.00011366,2]
[347804171,1736118633268,-319.55415024,0.00011366,2]
[347804173,1736118633277,-572.81,0.00011366,2]
[347804175,1736118633286,-500.0,0.00011366,2]
[347804177,1736118633296,-1085.32,0.00011366,2]
[347804179,1736118633305,-500.0,0.00011366,2]
[347804181,1736118633315,-500.0,0.00011366,2]
[347804183,1736118633326,-500.0,0.00011366,2]
[347804185,1736118633335,-500.0,0.00011366,2]
[347804187,1736118633344,-500.0,0.00011366,2]
[347804189,1736118633353,-1000.0,0.00011366,2]
[347804191,1736118633363,-149.54384976,0.00011366,2]
[347804193,1736118633375,-350.45615024,0.00011366,2]
[347804195,1736118633384,-500.0,0.00011366,2]
[347804197,1736118633393,-534.19,0.00011366,2]
[347804198,1736118633402,-500.0,0.00011366,2]
[347804200,1736118633412,-150.0,0.00011374,2]
[347804202,1736118633421,-150.0,0.00011374,2]
[347804205,1736118633431,-150.0,0.00011374,2]
[347804207,1736118633440,-150.0,0.00011374,2]
[347804208,1736118633449,-171.3492859,0.00011383,2]
[347804210,1736118633459,-459.881,0.000114,2]
[347804212,1736118633468,-150.0,0.00011411,2]
[347804214,1736118633478,-1000.0,0.00011431,2]
[347804216,1736118633488,-569.0547,0.00011433,2]
[347804218,1736118633497,-311.4188,0.00011433,2]
[347804220,1736118633506,-549.15006386,0.00011433,2]
[347804226,1736118633552,-669.27662058,0.00011433,2]
[347804229,1736118633577,-475.0,0.00011433,2]
[347804232,1736118633593,-2028.92741556,0.00011433,2]
[347804233,1736118633603,-30.50201756,0.00011444,2]
[347804234,1736118633615,-1461.28798244,0.00011444,2]
[347804235,1736118633625,-150.0,0.00011449,2]
[347804236,1736118633635,-150.0,0.00011449,2]
[347804237,1736118633645,-171.3492859,0.00011452,2]
[347804238,1736118633655,-70.36021297,0.00011459,2]
[347804239,1736118633671,-79.63978703,0.00011459,2]
[347804240,1736118633682,-200.0,0.0001146,2]
[347804241,1736118633692,-1519.48,0.00011473,2]
[347804242,1736118633701,-150.0,0.00011479,2]
[347804243,1736118633711,-150.0,0.00011479,2]
[347804244,1736118633720,-182.86,0.00011479,2]
[347804245,1736118633730,-436.94,0.00011479,2]
[347804246,1736118633739,-906.24,0.00011479,2]
[347804247,1736118633749,-152.75,0.00011479,2]
[347804248,1736118633759,-182.86,0.00011479,2]
[347804249,1736118633769,-150.0,0.00011479,2]
[347804250,1736118633778,-150.0,0.00011479,2]
[347804251,1736118633788,-436.94,0.00011479,2]
[347804252,1736118633798,-182.86,0.00011479,2]
[347804253,1736118633807,-411.57,0.00011479,2]
[347804254,1736118633817,-150.0,0.00011479,2]
[347804255,1736118633827,-150.0,0.00011479,2]
[347804256,1736118633837,-182.46,0.00011479,2]
[347804257,1736118633847,-150.0,0.00011479,2]
[347804258,1736118633856,-150.0,0.00011479,2]
[347804259,1736118633867,-150.0,0.00011479,2]
[347804260,1736118633879,-150.0,0.00011479,2]
[347804261,1736118633889,-356.86,0.00011479,2]
[347804262,1736118633898,-150.0,0.00011486,2]
[347804263,1736118633908,-1256.01591119,0.00011507,2]
[347804264,1736118633932,-1494.98408881,0.00011507,2]
[347804265,1736118633944,-1486.77,0.00011519,2]
[347804266,1736118633954,-171.3492859,0.00011521,2]
[347804267,1736118633964,-150.0,0.00011524,2]
[347804268,1736118633973,-150.0,0.00011524,2]
[347804269,1736118633983,-671.2439,0.00011532,2]
[347804270,1736118633995,-500.0,0.00011532,2]
[347804271,1736118634004,-500.0,0.00011532,2]
[347804272,1736118634014,-500.0,0.00011532,2]
[347804273,1736118634024,-500.0,0.00011532,2]
[347804274,1736118634034,-500.0,0.00011533,2]
[347804275,1736118634044,-500.0,0.00011533,2]
[347804276,1736118634053,-500.0,0.00011533,2]
[347804277,1736118634063,-500.0,0.00011533,2]
[347804278,1736118634074,-500.0,0.00011533,2]
[347804279,1736118634083,-500.0,0.00011533,2]
[347804280,1736118634095,-500.0,0.00011533,2]
[347804281,1736118634105,-500.0,0.00011533,2]
[347804282,1736118634114,-500.0,0.00011533,2]
[347804283,1736118634123,-595.99794701,0.00011533,2]
[347804284,1736118634133,-500.0,0.00011533,2]
[347804285,1736118634143,-500.0,0.00011533,2]
[347804286,1736118634152,-500.0,0.00011533,2]
[347804287,1736118634162,-500.0,0.00011533,2]
[347804288,1736118634172,-500.0,0.00011533,2]
[347804289,1736118634182,-500.0,0.00011533,2]
[347804290,1736118634191,-500.0,0.00011533,2]
[347804291,1736118634200,-500.0,0.00011533,2]
[347804292,1736118634210,-500.0,0.00011533,2]
[347804293,1736118634219,-497.18,0.00011533,2]
[347804294,1736118634228,-500.0,0.00011533,2]
[347804295,1736118634238,-184.5,0.00011533,2]
[347804296,1736118634247,-500.0,0.00011533,2]
[347804297,1736118634256,-340.17,0.00011533,2]
[347804298,1736118634266,-500.0,0.00011533,2]
[347804299,1736118634276,-500.0,0.00011533,2]
[347804300,1736118634285,-500.0,0.00011533,2]
[347804301,1736118634295,-500.0,0.00011533,2]
[347804302,1736118634304,-521.03,0.00011533,2]
[347804303,1736118634314,-500.0,0.00011533,2]
[347804304,1736118634324,-270.22,0.00011533,2]
[347804305,1736118634334,-500.0,0.00011533,2]
[347804306,1736118634344,-622.83196162,0.00011533,2]
[347804307,1736118634353,-500.0,0.00011533,2]
[347804308,1736118634362,-500.0,0.00011533,2]
[347804309,1736118634371,-500.0,0.00011533,2]
[347804310,1736118634380,-500.0,0.00011533,2]
[347804311,1736118634389,-500.0,0.00011533,2]
[347804312,1736118634399,-500.0,0.00011533,2]
[347804313,1736118634409,-278.80508513,0.00011533,2]
[347804314,1736118634418,-500.0,0.00011533,2]
[347804315,1736118634428,-500.0,0.00011533,2]
[347804316,1736118634438,-150.0,0.00011533,2]
[347804317,1736118634447,-500.0,0.00011533,2]
[347804318,1736118634457,-500.0,0.00011533,2]
[347804319,1736118634467,-500.0,0.00011533,2]
[347804320,1736118634477,-537.92,0.00011533,2]
[347804321,1736118634486,-500.0,0.00011533,2]
[347804322,1736118634495,-500.0,0.00011533,2]
[347804323,1736118634504,-500.0,0.00011533,2]
[347804324,1736118634515,-500.0,0.00011533,2]
[347804325,1736118634525,-500.0,0.00011533,2]
[347804326,1736118634535,-500.0,0.00011533,2]
[347804327,1736118634545,-500.0,0.00011533,2]
[347804328,1736118634555,-500.0,0.00011533,2]
[347804329,1736118634565,-500.0,0.00011533,2]
[347804330,1736118634576,-500.0,0.00011533,2]
[347804331,1736118634586,-500.0,0.00011533,2]
[347804332,1736118634596,-500.0,0.00011533,2]
[347804333,1736118634605,-500.0,0.00011533,2]
[347804334,1736118634617,-293.84,0.00011533,2]
[347804335,1736118634629,-636.52,0.00011533,2]
[347804336,1736118634638,-500.0,0.00011533,2]
[347804337,1736118634650,-500.0,0.00011533,2]
[347804338,1736118634661,-500.0,0.00011533,2]
[347804339,1736118634672,-625.66,0.00011533,2]
[347804340,1736118634682,-500.0,0.00011533,2]
[347804341,1736118634695,-500.0,0.00011533,2]
[347804342,1736118634704,-500.0,0.00011533,2]
[347804343,1736118634714,-500.0,0.00011533,2]
[347804344,1736118634726,-500.0,0.00011533,2]
[347804345,1736118634735,-500.0,0.00011533,2]
[347804346,1736118634745,-500.0,0.00011533,2]
[347804347,1736118634755,-500.0,0.00011533,2]
[347804348,1736118634764,-500.0,0.00011533,2]
[347804349,1736118634775,-500.0,0.00011533,2]
[347804350,1736118634784,-500.0,0.00011533,2]
[347804351,1736118634793,-500.0,0.00011533,2]
[347804352,1736118634802,-500.0,0.00011533,2]
[347804353,1736118634811,-500.0,0.00011533,2]
[347804354,1736118634820,-500.0,0.00011533,2]
[347804355,1736118634830,-500.0,0.00011533,2]
[347804356,1736118634839,-500.0,0.00011533,2]
[347804357,1736118634850,-500.0,0.00011533,2]
[347804358,1736118634860,-500.0,0.00011533,2]
[347804359,1736118634872,-500.0,0.00011533,2]
[347804360,1736118634883,-500.0,0.00011533,2]